fUST/lending_fUST_20250609
["ID","MTS","AMOUNT","RATE_DAILY","PERIOD"]
[365097660,1749465038825,-174.70796,0.00021093,2]
[365097662,1749465038834,-1500.0,0.00021096,2]
[365097664,1749465038844,-975.99283065,0.00021176,4]
[365097666,1749465038854,-975.99283065,0.00021383,5]
[365097668,1749465038864,-975.99283065,0.0002159,5]
[365097670,1749465038873,-189.4970927,0.000216,2]
[365097672,1749465038883,-2000.0,0.00021644,2]
[365097674,1749465038893,-975.99283065,0.00021797,6]
[365097676,1749465038903,-4300.0,0.0002181,2]
[365097678,1749465038913,-219.4765361,0.00021817,2]
[365097680,1749465038922,-364.9269501,0.000219,2]
[365097682,1749465038932,-691.52,0.000219,2]
[365097684,1749465038942,-1688.0,0.00021901,2]
[365097686,1749465038951,-207.4,0.00021901,2]
[365097688,1749465038962,-834.7738823,0.00021913,2]
[365097691,1749465038972,-160.0,0.00021913,2]
[365097693,1749465038982,-160.0,0.00021913,2]
[365097695,1749465038991,-160.0,0.00021913,2]
[365097697,1749465039000,-300.0,0.00021916,2]
[365097699,1749465039012,-230.54532745,0.00021916,2]
[365097701,1749465039021,-500.0,0.00021916,2]
[365097703,1749465039030,-440.0,0.00021917,4]
[365097705,1749465039039,-440.0,0.00021917,2]
[365097707,1749465039048,-440.0,0.00021917,4]
[365097709,1749465039057,-440.0,0.00021917,4]
[365097711,1749465039066,-440.0,0.00021917,4]
[365097713,1749465039075,-440.0,0.00021917,4]
[365097714,1749465039085,-577.98075775,0.00021917,4]
[365097715,1749465039095,-973.49,0.00021917,4]
[365097716,1749465039104,-1385.73,0.00021917,4]
[365097717,1749465039114,-440.0,0.00021917,4]
[365097718,1749465039126,-979.91,0.00021917,4]
[365097719,1749465039136,-1166.4,0.00021917,4]
[365097720,1749465039145,-440.0,0.00021917,4]
[365097721,1749465039160,-440.0,0.00021917,4]
[365097722,1749465039170,-440.0,0.00021917,4]
[365097723,1749465039179,-440.0,0.00021917,4]
[365097724,1749465039189,-440.0,0.00021917,4]
[365097725,1749465039199,-430.0,0.00021917,4]
[365097726,1749465039210,-440.0,0.00021917,4]
[365097727,1749465039220,-455.0,0.00021917,4]
[365097728,1749465039229,-440.0,0.00021917,4]
[365097729,1749465039239,-440.0,0.00021917,4]
[365097730,1749465039249,-440.0,0.00021917,4]
[365097732,1749465039259,-1476.16,0.00021917,4]
[365097734,1749465039268,-430.0,0.00021917,4]
[365097736,1749465039277,-560.31,0.00021917,4]
[365097738,1749465039287,-440.0,0.00021917,4]
[365097740,1749465039297,-440.0,0.00021917,4]
[365097742,1749465039306,-440.0,0.00021917,4]
[365097744,1749465039316,-8331.92,0.00021917,4]
[365097746,1749465039326,-440.0,0.00021917,4]
[365097748,1749465039336,-440.0,0.00021917,4]
[365097750,1749465039346,-440.0,0.00021917,4]
[365097753,1749465039356,-440.0,0.00021917,4]
[365097755,1749465039365,-1828.4,0.00021917,4]
[365097757,1749465039375,-430.0,0.00021917,4]
[365097759,1749465039384,-400.0,0.00021917,4]
[365097761,1749465039393,-440.0,0.00021917,4]
[365097763,1749465039402,-842.2,0.00021917,4]
[365097765,1749465039411,-732.43,0.00021917,4]
[365097767,1749465039420,-1006.02,0.00021917,4]
[365097769,1749465039429,-1128.91,0.00021917,4]
[365097771,1749465039439,-440.0,0.00021917,4]
[365097773,1749465039449,-440.0,0.00021917,4]
[365097775,1749465039458,-580.28,0.00021917,4]
[365097777,1749465039467,-802.23,0.00021917,4]
[365097778,1749465039477,-440.0,0.00021917,4]
[365097780,1749465039486,-440.0,0.00021917,4]
[365097782,1749465039495,-440.0,0.00021917,4]
[365097784,1749465039504,-350.0,0.00021917,2]
[365097786,1749465039514,-493.2271762,0.00021917,4]
[365097788,1749465039523,-418.54585155,0.00021917,4]
[365097790,1749465039533,-488.12894604,0.00021918,2]
[365097793,1749465039543,-440.0,0.00021949,4]
[365097794,1749465039552,-440.0,0.00021949,4]
[365097796,1749465039561,-440.0,0.00021949,4]
[365097798,1749465039571,-440.0,0.00021949,4]
[365097801,1749465039581,-440.0,0.00021949,4]
[365097803,1749465039590,-440.0,0.00021949,4]
[365097805,1749465039600,-440.0,0.00021949,4]
[365097807,1749465039610,-430.0,0.00021949,4]
[365097808,1749465039620,-440.0,0.00021949,4]
[365097809,1749465039629,-500.0,0.00021949,4]
[365097811,1749465039639,-430.0,0.00021949,4]
[365097812,1749465039649,-440.0,0.00021949,4]
[365097813,1749465039658,-790.50627724,0.00021956,2]
[365097814,1749465039668,-220.0,0.00022,120]
[365097815,1749465039677,-975.99283065,0.00022003,6]
[365097816,1749465039687,-5000.0,0.00022118,2]
[365097817,1749465039697,-500.0,0.00022118,2]
[365097818,1749465039708,-500.0,0.00022118,2]
[365097819,1749465039717,-500.0,0.00022118,2]
[365097820,1749465039728,-500.0,0.00022118,2]
[365097821,1749465039738,-500.0,0.00022118,2]
[365097822,1749465039748,-500.0,0.00022118,2]
[365097823,1749465039757,-500.0,0.00022118,2]
[365097824,1749465039766,-500.0,0.00022118,2]
[365097825,1749465039775,-500.0,0.00022118,2]
[365097826,1749465039784,-500.0,0.00022118,2]
[365097827,1749465039794,-4087.08887474,0.00022118,2]
[365097829,1749465039803,-500.0,0.00022118,2]
[365097830,1749465039813,-500.0,0.00022118,2]
[365097831,1749465039823,-500.0,0.00022118,2]
[365097832,1749465039832,-500.0,0.00022118,2]
[365097833,1749465039842,-500.0,0.00022118,2]
[365097834,1749465039851,-500.0,0.00022118,2]
[365097835,1749465039861,-500.0,0.00022118,2]
[365097836,1749465039870,-500.0,0.00022118,2]
[365097837,1749465039882,-500.0,0.00022118,2]
[365097838,1749465039894,-500.0,0.00022118,2]
[365097839,1749465039904,-500.0,0.00022118,2]
[365097840,1749465039914,-500.0,0.00022118,2]
[365097841,1749465039923,-500.0,0.00022118,2]
[365097843,1749465039934,-500.0,0.00022118,2]
[365097844,1749465039944,-500.0,0.00022118,2]
[365097846,1749465039953,-572.66110995,0.00022118,2]
[365097848,1749465039964,-500.0,0.00022118,2]
[365097851,1749465039974,-500.0,0.00022118,2]
[365097852,1749465039985,-500.0,0.00022118,2]
[365097854,1749465039994,-213.08899333,0.00022126,2]
[365097855,1749465040006,-842.5625,0.00022126,2]
[365097856,1749465040016,-424.05420114,0.00022126,2]
[365097858,1749465040026,-229.64266968,0.00022126,2]
[365097860,1749465040036,-580.28,0.00022127,4]
[365097862,1749465040046,-440.59,0.00022129,4]
[365097864,1749465040056,-172.32,0.00022129,2]
[365097867,1749465040066,-440.0,0.00022129,4]
[365097869,1749465040075,-440.0,0.00022129,4]
[365097872,1749465040084,-440.0,0.00022129,4]
[365097875,1749465040094,-440.0,0.00022129,4]
[365097877,1749465040104,-440.0,0.00022129,4]
[365097894,1749465040237,-430.0,0.00022129,4]
[365097896,1749465040247,-430.0,0.00022129,4]
[365097898,1749465040257,-756.55,0.00022129,4]
[365097900,1749465040266,-779.34,0.00022129,4]
[365097902,1749465040276,-442.14548852,0.00022129,4]
[365097904,1749465040285,-440.0,0.00022129,4]
[365097906,1749465040295,-1481.49,0.00022129,4]
[365097908,1749465040305,-520.51,0.00022129,4]
[365097910,1749465040314,-430.0,0.00022129,4]
[365097912,1749465040323,-430.0,0.00022129,4]
[365097914,1749465040332,-473.73418715,0.00022129,4]
[365097916,1749465040341,-580.28,0.0002213,4]
[365097918,1749465040350,-580.28,0.0002219,4]
[365097921,1749465040360,-440.0,0.00022191,4]
[365097923,1749465040369,-440.0,0.00022191,4]
[365097924,1749465040378,-973.49,0.00022191,4]
[365097926,1749465040388,-1385.73,0.00022191,4]
[365097929,1749465040397,-440.0,0.00022191,4]
[365097931,1749465040407,-979.91,0.00022191,4]
[365097933,1749465040416,-1166.4,0.00022191,4]
[365097935,1749465040425,-440.0,0.00022191,4]
[365097937,1749465040434,-440.0,0.00022191,4]
[365097938,1749465040444,-440.0,0.00022191,4]
[365097941,1749465040453,-440.0,0.00022191,4]
[365097943,1749465040463,-440.0,0.00022191,4]
[365097945,1749465040473,-1476.16,0.00022191,4]
[365097947,1749465040482,-560.31,0.00022191,4]
[365097949,1749465040491,-440.0,0.00022191,4]
[365097950,1749465040501,-8331.92,0.00022191,4]
[365097953,1749465040511,-440.0,0.00022191,4]
[365097955,1749465040520,-440.0,0.00022191,4]
[365097957,1749465040529,-440.0,0.00022191,4]
[365097958,1749465040539,-1828.4,0.00022191,4]
[365097961,1749465040549,-440.0,0.00022191,4]
[365097963,1749465040558,-842.2,0.00022191,4]
[365097965,1749465040567,-732.43,0.00022191,4]
[365097967,1749465040577,-1006.02,0.00022191,4]
[365097969,1749465040587,-1128.91,0.00022191,4]
[365097971,1749465040596,-440.0,0.00022191,4]
[365097973,1749465040606,-196.17107756,0.00022191,4]
[365097975,1749465040615,-802.23,0.00022191,4]
[365097977,1749465040624,-440.0,0.00022191,4]
[365097979,1749465040633,-440.0,0.00022191,4]
[365097981,1749465040643,-410.0,0.00022191,4]
[365097983,1749465040652,-2500.0,0.00022192,2]
[365097985,1749465040662,-219.47653608,0.00022196,2]
[365097987,1749465040672,-975.99283065,0.0002221,6]
[365097989,1749465040681,-440.0,0.00022223,4]
[365097990,1749465040690,-474.86,0.00022223,4]
[365097992,1749465040700,-340.0,0.00022223,4]
[365097994,1749465040710,-440.0,0.00022223,4]
[365097996,1749465040719,-440.0,0.00022223,4]
[365097997,1749465040728,-440.0,0.00022223,4]
[365097998,1749465040738,-440.0,0.00022223,4]
[365097999,1749465040747,-500.0,0.00022223,4]
[365098000,1749465040757,-440.0,0.00022223,4]
[365098001,1749465040767,-964.121,0.00022268,2]
[365098002,1749465040776,-539.259,0.00022268,2]
[365098003,1749465040786,-405.0,0.00022268,2]
[365098004,1749465040796,-653.0,0.00022268,2]
[365098005,1749465040806,-3177.0,0.00022272,2]
[365098006,1749465040815,-500.0,0.00022282,2]
[365098007,1749465040824,-500.0,0.00022358,2]
[365098008,1749465040834,-502.60334184,0.00022358,2]
[365098009,1749465040844,-500.0,0.00022367,2]
[365098010,1749465040853,-580.28,0.00022402,4]
[365098011,1749465040863,-440.0,0.00022403,4]
[365098012,1749465040872,-253.35698224,0.00022403,4]
[365098013,1749465040882,-440.0,0.00022403,4]
[365098014,1749465040892,-440.0,0.00022403,4]
[365098015,1749465040901,-756.55,0.00022403,4]
[365098016,1749465040911,-779.34,0.00022403,4]
[365098017,1749465040920,-1481.49,0.00022403,4]
[365098018,1749465040929,-520.51,0.00022403,4]
[365098019,1749465040939,-975.99283065,0.00022417,7]
[365098020,1749465040949,-580.28,0.00022464,4]
[365098021,1749465040959,-400.0,0.00022465,2]
[365098022,1749465040969,-400.0,0.00022465,2]
[365098023,1749465040978,-440.0,0.00022465,4]
[365098024,1749465040988,-462.61980209,0.00022465,4]
[365098025,1749465040998,-973.49,0.00022465,4]
[365098027,1749465041009,-1385.73,0.00022465,4]
[365098028,1749465041018,-440.0,0.00022465,4]
[365098029,1749465041028,-979.91,0.00022465,4]
[365098030,1749465041038,-1166.4,0.00022465,4]
[365098031,1749465041047,-440.0,0.00022465,4]
[365098032,1749465041057,-440.0,0.00022465,4]
[365098033,1749465041066,-440.0,0.00022465,4]
[365098034,1749465041076,-440.0,0.00022465,4]
[365098035,1749465041086,-440.0,0.00022465,4]
[365098036,1749465041095,-1476.16,0.00022465,4]
[365098037,1749465041105,-560.31,0.00022465,4]
[365098038,1749465041114,-440.0,0.00022465,4]
[365098039,1749465041127,-8331.92,0.00022465,4]
[365098040,1749465041137,-440.0,0.00022465,4]
[365098041,1749465041147,-440.0,0.00022465,4]
[365098042,1749465041157,-440.0,0.00022465,4]
[365098043,1749465041167,-1828.4,0.00022465,4]
[365098044,1749465041177,-440.0,0.00022465,4]
[365098045,1749465041186,-842.2,0.00022465,4]
[365098046,1749465041196,-732.43,0.00022465,4]
[365098047,1749465041207,-1006.02,0.00022465,4]
[365098048,1749465041218,-1128.91,0.00022465,4]
[365098049,1749465041228,-802.23,0.00022465,4]
[365098050,1749465041238,-440.0,0.00022465,4]
[365098051,1749465041247,-440.0,0.00022465,4]
[365098052,1749465041257,-440.0,0.00022497,4]
[365098053,1749465041268,-440.0,0.00022497,4]
[365098054,1749465041278,-440.0,0.00022497,4]
[365098055,1749465041287,-440.0,0.00022497,4]
[365098057,1749465041297,-440.0,0.00022497,4]
[365098058,1749465041307,-500.0,0.00022497,4]
[365098060,1749465041317,-440.0,0.00022497,4]
[365098061,1749465041327,-219.47653608,0.00022575,2]
[365098063,1749465041338,-28652.12376673,0.000226,7]
[365098065,1749465041347,-975.99283065,0.00022624,7]
[365098066,1749465041357,-500.0,0.00022673,2]
[365098068,1749465041367,-501.73298732,0.00022673,2]
[365098069,1749465041376,-500.0,0.00022673,2]
[365098070,1749465041385,-500.0,0.00022673,2]
[365098071,1749465041396,-519.29406642,0.00022673,2]
[365098072,1749465041406,-160.44949506,0.00022673,2]
[365098073,1749465041416,-501.4556783,0.00022673,2]
[365098074,1749465041426,-614.37034996,0.00022673,2]
[365098075,1749465041436,-502.69473281,0.00022673,2]
[365098076,1749465041446,-500.0,0.00022673,2]
[365098077,1749465041455,-623.62627761,0.00022673,2]
[365098078,1749465041465,-502.45804762,0.00022673,2]
[365098079,1749465041475,-500.0,0.00022673,2]
[365098080,1749465041485,-600.0,0.00022673,2]
[365098081,1749465041495,-502.1901809,0.00022673,2]
[365098082,1749465041505,-500.0,0.00022673,2]
[365098083,1749465041515,-260.075104,0.00022673,2]
[365098084,1749465041524,-151.0,0.00022673,7]
[365098085,1749465041534,-244.740432,0.00022673,7]
[365098086,1749465041543,-580.28,0.00022676,4]
[365098087,1749465041553,-45779.26021655,0.00022677,2]
[365098088,1749465041563,-656.51482854,0.00022677,2]
[365098089,1749465041573,-440.0,0.00022677,4]
[365098090,1749465041583,-440.0,0.00022677,4]
[365098091,1749465041592,-756.55,0.00022677,4]
[365098092,1749465041601,-779.34,0.00022677,4]
[365098093,1749465041611,-1481.49,0.00022677,4]
[365098094,1749465041621,-520.51,0.00022677,4]
[365098095,1749465041630,-200.0,0.00022699,2]
[365098096,1749465041641,-338529.51012904,0.000227,2]
[365098097,1749465041651,-151.0,0.000227,7]
[365098098,1749465041662,-151.0,0.000227,7]
[365098099,1749465041672,-151.0,0.000227,7]
[365098100,1749465041680,-151.0,0.000227,7]
[365098101,1749465041689,-151.0,0.000227,7]
[365098102,1749465041699,-151.0,0.000227,7]
[365098103,1749465041707,-151.0,0.000227,7]
[365098104,1749465041716,-500.0,0.00022738,2]
[365098105,1749465041725,-580.28,0.00022738,4]
[365098106,1749465041733,-200.50968493,0.00022738,2]
[365098107,1749465041742,-440.0,0.00022739,4]
[365098108,1749465041751,-973.49,0.00022739,4]
[365098109,1749465041760,-1385.73,0.00022739,4]
[365098110,1749465041768,-440.0,0.00022739,4]
[365098111,1749465041777,-979.91,0.00022739,4]
[365098112,1749465041785,-1166.4,0.00022739,4]
[365098113,1749465041794,-440.0,0.00022739,4]
[365098114,1749465041802,-440.0,0.00022739,4]
[365098115,1749465041810,-440.0,0.00022739,4]
[365098116,1749465041818,-440.0,0.00022739,4]
[365098117,1749465041825,-440.0,0.00022739,4]
[365098118,1749465041834,-1476.16,0.00022739,4]
[365098119,1749465041842,-560.31,0.00022739,4]
[365098120,1749465041850,-440.0,0.00022739,4]
[365098121,1749465041857,-8331.92,0.00022739,4]
[365098122,1749465041864,-440.0,0.00022739,4]
[365098123,1749465041872,-440.0,0.00022739,4]
[365098124,1749465041880,-440.0,0.00022739,4]
[365098125,1749465041887,-1828.4,0.00022739,4]
[365098126,1749465041896,-440.0,0.00022739,4]
[365098127,1749465041905,-842.2,0.00022739,4]
[365098128,1749465041915,-732.43,0.00022739,4]
[365098129,1749465041925,-1006.02,0.00022739,4]
[365098130,1749465041935,-1128.91,0.00022739,4]
[365098131,1749465041946,-802.23,0.00022739,4]
[365098132,1749465041956,-440.0,0.00022739,4]
[365098133,1749465041966,-440.0,0.00022739,4]
[365098134,1749465041976,-3000.0,0.0002274,2]
[365098135,1749465041987,-337.0,0.00022746,2]
[365098136,1749465041996,-440.0,0.00022771,4]
[365098137,1749465042007,-440.0,0.00022771,4]
[365098138,1749465042017,-440.0,0.00022771,4]
[365098139,1749465042027,-355.8,0.00022771,4]
[365098140,1749465042036,-975.99283065,0.00022831,8]
[365098141,1749465042046,-1000.0,0.00022906,2]
[365098142,1749465042055,-959.76607529,0.00022913,2]
[365098143,1749465042065,-500.0,0.0002293,2]
[365098144,1749465042074,-500.0,0.0002293,2]
[365098145,1749465042083,-120.16235642,0.0002293,2]
[365098146,1749465042343,150.0,0.0001695,2]
[365098165,1749465043373,-150.0,0.00018491,2]
[365098166,1749465043383,-184.16,0.00020032,2]
[365098167,1749465043393,-245.55,0.00021573,2]
[365098168,1749465043402,-160.0,0.00021913,2]
[365098169,1749465043411,-440.0,0.00021917,4]
[365098170,1749465043422,-420.0,0.00021917,4]
[365098171,1749465043431,-440.0,0.00022191,4]
[365098172,1749465043441,-440.0,0.00022465,4]
[365098173,1749465043449,-440.0,0.00022739,4]
[365098174,1749465043459,-379.83764358,0.0002293,2]
[365098175,1749465043468,-580.28,0.0002295,4]
[365098176,1749465043477,-440.0,0.00022951,4]
[365098177,1749465043487,-440.0,0.00022951,4]
[365098178,1749465043496,-756.55,0.00022951,4]
[365098179,1749465043505,-779.34,0.00022951,4]
[365098180,1749465043514,-1481.49,0.00022951,4]
[365098181,1749465043523,-520.51,0.00022951,4]
[365098182,1749465043532,-219.47653608,0.00022954,2]
[365098183,1749465043541,-1182.963159,0.00022971,3]
[365098184,1749465043551,-967.09103696,0.00023,60]
[365098185,1749465043559,-691.52,0.00023,7]
[365098186,1749465043568,-580.28,0.00023012,4]
[365098187,1749465043577,-440.0,0.00023013,4]
[365098188,1749465043586,-1385.73,0.00023013,4]
[365098189,1749465043596,-440.0,0.00023013,4]
[365098190,1749465043605,-979.91,0.00023013,4]
[365098191,1749465043615,-1166.4,0.00023013,4]
[365098192,1749465043624,-440.0,0.00023013,4]
[365098193,1749465043633,-440.0,0.00023013,4]
[365098194,1749465043642,-440.0,0.00023013,4]
[365098195,1749465043651,-440.0,0.00023013,4]
[365098196,1749465043660,-440.0,0.00023013,4]
[365098197,1749465043669,-1476.16,0.00023013,4]
[365098198,1749465043678,-560.31,0.00023013,4]
[365098199,1749465043688,-440.0,0.00023013,4]
[365098200,1749465043698,-8331.92,0.00023013,4]
[365098201,1749465043708,-440.0,0.00023013,4]
[365098202,1749465043718,-440.0,0.00023013,4]
[365098203,1749465043727,-440.0,0.00023013,4]
[365098204,1749465043737,-1828.4,0.00023013,4]
[365098205,1749465043746,-151.0,0.00023013,7]
[365098206,1749465043756,-440.0,0.00023013,4]
[365098207,1749465043767,-842.2,0.00023013,4]
[365098208,1749465043777,-151.0,0.00023013,7]
[365098209,1749465043787,-732.43,0.00023013,4]
[365098210,1749465043797,-1006.02,0.00023013,4]
[365098211,1749465043807,-1128.91,0.00023013,4]
[365098212,1749465043817,-151.0,0.00023013,7]
[365098213,1749465043827,-802.23,0.00023013,4]
[365098214,1749465043836,-440.0,0.00023013,4]
[365098215,1749465043846,-151.0,0.00023013,7]
[365098216,1749465043855,-151.0,0.00023013,7]
[365098217,1749465043865,-430.0,0.00023013,4]
[365098218,1749465043875,-440.0,0.00023013,4]
[365098219,1749465043990,-975.99283065,0.00023038,8]
[365098220,1749465044001,-440.0,0.00023045,4]
[365098221,1749465044011,-440.0,0.00023045,4]
[365098222,1749465044021,-440.0,0.00023045,4]
[365098223,1749465044031,-306.94,0.00023114,2]
[365098224,1749465044041,-162.42163709,0.00023151,2]
[365098225,1749465044051,-959.76607527,0.0002316,2]
[365098226,1749465044060,-405.25949644,0.00023164,3]
[365098227,1749465044071,-3000.0,0.000232,2]
[365098228,1749465044080,-8609.53247696,0.000232,2]
[365098229,1749465044090,-580.28,0.00023209,4]
[365098230,1749465044100,-3000.0,0.0002321,2]
[365098231,1749465044109,-3000.0,0.0002322,2]
[365098232,1749465044119,-1000.0,0.00023221,2]
[365098233,1749465044133,-1008.80002652,0.00023221,2]
[365098234,1749465044142,-1000.0,0.00023221,2]
[365098235,1749465044152,-1004.30735169,0.00023221,2]
[365098236,1749465044161,-1000.0,0.00023221,2]
[365098237,1749465044171,-1200.0,0.00023221,2]
[365098238,1749465044181,-512.96172377,0.00023221,2]
[365098239,1749465044191,-440.0,0.00023225,4]
[365098240,1749465044202,-756.55,0.00023225,4]
[365098241,1749465044212,-779.34,0.00023225,4]
[365098242,1749465044222,-1481.49,0.00023225,4]
[365098243,1749465044231,-520.51,0.00023225,4]
[365098244,1749465044242,-3000.0,0.0002323,2]
[365098245,1749465044251,-1333.0,0.00023233,120]
[365098246,1749465044262,-3000.0,0.0002324,2]
[365098247,1749465044271,-975.99283065,0.00023245,8]
[365098248,1749465044282,-580.28,0.00023249,4]
[365098249,1749465044292,-3000.0,0.0002325,2]
[365098250,1749465044302,-503.50116418,0.00023253,8]
[365098251,1749465044312,-3000.0,0.0002326,2]
[365098252,1749465044321,-3177.0,0.00023263,2]
[365098253,1749465044331,-168.0,0.00023267,2]
[365098254,1749465044340,-215.0738,0.0002327,2]
[365098255,1749465044350,-3000.0,0.0002327,2]
[365098256,1749465044360,-3000.0,0.0002328,2]
[365098257,1749465044369,-204.9,0.0002328,120]
[365098258,1749465044379,-503.14179143,0.00023283,8]
[365098259,1749465044389,-213.558,0.00023286,2]
[365098260,1749465044399,-580.28,0.00023286,4]
[365098261,1749465044408,-440.0,0.00023287,4]
[365098262,1749465044418,-151.0,0.00023287,7]
[365098263,1749465044427,-153.545985,0.00023287,7]
[365098264,1749465044437,-151.0,0.00023287,7]
[365098265,1749465044446,-151.0,0.00023287,7]
[365098266,1749465044455,-1385.73,0.00023287,4]
[365098267,1749465044465,-151.0,0.00023287,7]
[365098268,1749465044474,-247.07997,0.00023287,7]
[365098269,1749465044484,-151.0,0.00023287,7]
[365098270,1749465044494,-571.90251388,0.00023287,4]
[365098271,1749465044503,-151.0,0.00023287,7]
[365098272,1749465044514,-979.91,0.00023287,4]
[365098273,1749465044524,-1166.4,0.00023287,4]
[365098274,1749465044533,-440.0,0.00023287,4]
[365098275,1749465044543,-160.0,0.00023287,4]
[365098276,1749465044553,-151.0,0.00023287,7]
[365098277,1749465044563,-151.0,0.00023287,7]
[365098278,1749465044572,-440.0,0.00023287,4]
[365098279,1749465044582,-151.0,0.00023287,7]
[365098280,1749465044592,-151.0,0.00023287,2]
[365098281,1749465044601,-151.0,0.00023287,7]
[365098282,1749465044611,-440.0,0.00023287,4]
[365098283,1749465044621,-151.0,0.00023287,7]
[365098284,1749465044631,-151.0,0.00023287,7]
[365098285,1749465044640,-440.0,0.00023287,4]
[365098286,1749465044650,-1476.16,0.00023287,4]
[365098287,1749465044660,-560.31,0.00023287,4]
[365098288,1749465044670,-440.0,0.00023287,4]
[365098289,1749465044679,-8331.92,0.00023287,4]
[365098290,1749465044691,-440.0,0.00023287,4]
[365098291,1749465044701,-440.0,0.00023287,4]
[365098292,1749465044711,-151.0,0.00023287,7]
[365098293,1749465044722,-151.0,0.00023287,7]
[365098294,1749465044732,-545.66,0.00023287,4]
[365098295,1749465044742,-1828.4,0.00023287,4]
[365098296,1749465044751,-151.0,0.00023287,7]
[365098297,1749465044761,-440.0,0.00023287,4]
[365098298,1749465044771,-842.2,0.00023287,4]
[365098299,1749465044781,-732.43,0.00023287,4]
[365098300,1749465044791,-1006.02,0.00023287,4]
[365098301,1749465044801,-1128.91,0.00023287,4]
[365098302,1749465044811,-802.23,0.00023287,4]
[365098303,1749465044820,-440.0,0.00023287,4]
[365098304,1749465044830,-151.0,0.00023287,7]
[365098305,1749465044840,-440.0,0.00023287,4]
[365098306,1749465044849,-3226.93810679,0.00023288,2]
[365098307,1749465044859,-580.28,0.00023289,4]
[365098308,1749465044868,-3000.0,0.0002329,2]
[365098309,1749465044878,-3000.0,0.000233,2]
[365098310,1749465044887,-3000.0,0.000233,2]
[365098311,1749465044897,-151.0,0.000233,7]
[365098312,1749465044907,-151.0,0.000233,7]
[365098313,1749465044917,-151.0,0.000233,7]
[365098314,1749465044927,-151.0,0.000233,7]
[365098315,1749465044936,-151.0,0.000233,7]
[365098316,1749465044946,-638.0,0.000233,2]
[365098317,1749465044955,-3000.0,0.0002331,2]
[365098318,1749465044964,-3000.0,0.0002331,2]
[365098319,1749465044973,-440.0,0.00023319,4]
[365098320,1749465044982,-440.0,0.00023319,4]
[365098321,1749465044991,-440.0,0.00023319,4]
[365098322,1749465045001,-580.28,0.00023319,4]
[365098323,1749465045011,-3000.0,0.0002332,2]
[365098324,1749465045020,-3000.0,0.0002332,2]
[365098325,1749465045030,-151.0,0.0002332,7]
[365098326,1749465045039,-151.0,0.0002332,7]
[365098327,1749465045048,-211.92855,0.0002332,7]
[365098328,1749465045057,-151.0,0.0002332,7]
[365098329,1749465045067,-3000.0,0.0002333,2]
[365098330,1749465045076,-3000.0,0.0002333,2]
[365098331,1749465045084,-151.0,0.0002333,7]
[365098332,1749465045093,-151.0,0.0002333,7]
[365098333,1749465045102,-151.0,0.0002333,7]
[365098334,1749465045112,-151.0,0.0002333,2]
[365098335,1749465045121,-151.0,0.0002333,7]
[365098336,1749465045135,-151.0,0.0002333,7]